fUSD/lending_fUSD_20241116
["ID","MTS","AMOUNT","RATE_DAILY","PERIOD"]
[342334541,1731743357227,-1622.546477,8.506e-05,2]
[342334542,1731743357249,-1622.54647699,8.507e-05,2]
[342334543,1731743357270,-1622.54647699,8.507e-05,2]
[342334544,1731743357291,-610.45082718,8.507e-05,2]
[342334545,1731743357314,-156.49,8.51e-05,2]
[342334546,1731743357335,-156.49,8.514e-05,2]
[342334547,1731743357357,-156.49,8.518e-05,2]
[342334548,1731743357377,-156.49,8.523e-05,2]
[342334549,1731743357397,-156.49,8.527e-05,2]
[342334550,1731743357424,-156.49,8.531e-05,2]
[342334551,1731743357447,-156.49,8.535e-05,2]
[342334552,1731743357468,-156.49,8.54e-05,2]
[342334553,1731743357493,-262.4,8.566e-05,2]
[342334554,1731743357513,-1500.0,8.571e-05,2]
[342334555,1731743357534,-686.479995,8.859e-05,2]
[342334556,1731743357554,-331.63700357,8.904e-05,2]
[342334557,1731743369167,-537.6,8.796e-05,2]
[342334558,1731743369191,-302.36217882,8.904e-05,2]
[342334569,1731743432146,-1500.0,8.783e-05,2]
[342334570,1731743432156,-989.35,8.796e-05,2]
[342334571,1731743432167,-90.86081761,8.904e-05,2]
[342334572,1731743432177,-400.0,9e-05,3]
[342334573,1731743432186,-900.0,9.1e-05,3]
[342334574,1731743432196,-167.41,9.17e-05,2]
[342334575,1731743432205,-1400.0,9.2e-05,3]
[342334576,1731743432219,-150.0,9.263e-05,2]
[342334577,1731743432228,-300.0,9.263e-05,2]
[342334578,1731743432239,-150.0,9.264e-05,2]
[342334579,1731743432248,-967.64,9.264e-05,2]
[342334580,1731743432258,-150.17,9.264e-05,2]
[342334581,1731743432267,-253.73,9.264e-05,2]
[342334582,1731743432277,-300.0,9.264e-05,2]
[342334583,1731743432286,-291.8,9.264e-05,2]
[342334584,1731743432296,-300.0,9.264e-05,2]
[342334585,1731743432305,-150.0,9.264e-05,2]
[342334586,1731743432314,-150.0,9.264e-05,2]
[342334587,1731743432324,-150.46,9.264e-05,2]
[342334588,1731743432333,-150.4,9.264e-05,2]
[342334589,1731743432343,-300.0,9.264e-05,2]
[342334590,1731743432352,-150.0,9.264e-05,2]
[342334591,1731743432362,-150.0,9.264e-05,2]
[342334592,1731743432371,-150.0,9.264e-05,2]
[342334593,1731743432381,-150.87,9.264e-05,2]
[342334594,1731743432391,-150.0,9.264e-05,2]
[342334595,1731743432400,-150.0,9.264e-05,2]
[342334596,1731743432410,-150.0,9.264e-05,2]
[342334597,1731743432419,-150.0,9.264e-05,2]
[342334598,1731743432428,-1270.13447221,9.3e-05,3]
[342334599,1731743432442,-629.86552779,9.3e-05,3]
[342334600,1731743432451,-1353.38674409,9.4e-05,3]
[342334601,1731743432464,-1046.61325591,9.4e-05,3]
[342334602,1731743432474,-168.63,9.401e-05,2]
[342334603,1731743432485,-400.0,9.5e-05,3]
[342334604,1731743432494,-400.0,9.6e-05,3]
[342334605,1731743432503,-1000.0,9.605e-05,2]
[342334607,1731743432513,-262.4,9.636e-05,2]
[342334609,1731743432523,-1000.0,9.668e-05,2]
[342334611,1731743432532,-150.99,9.67e-05,2]
[342334612,1731743432541,-999.99,9.67e-05,2]
[342334613,1731743432551,-446.19,9.67e-05,2]
[342334614,1731743432560,-601.47,9.67e-05,2]
[342334616,1731743432569,-299.99,9.67e-05,2]
[342334618,1731743432579,-4944.58,9.67e-05,2]
[342334620,1731743432588,-400.0,9.7e-05,3]
[342334621,1731743432597,-8461.36630234,9.798e-05,2]
[342334622,1731743432609,-303.27019508,9.798e-05,2]
[342334623,1731743432644,-8433.76477572,9.798e-05,2]
[342334624,1731743432655,-585.06991107,9.798e-05,2]
[342334625,1731743432666,-3687.76751579,9.798e-05,2]
[342334626,1731743432675,-1973.9197,9.799e-05,2]
[342334627,1731743432684,-400.0,9.8e-05,3]
[342334628,1731743432693,-264.08162704,9.888e-05,2]
[342334629,1731743432704,-4176.73262461,9.888e-05,2]
[342334630,1731743432742,-2682.32,9.888e-05,2]
[342334631,1731743432753,-8321.7768936,9.888e-05,2]
[342334636,1731743438409,-3547.95302906,9.888e-05,2]
[342334637,1731743438421,-1466.81039955,9.888e-05,2]
[342334638,1731743438432,-328.85029383,9.888e-05,2]
[342334639,1731743438596,-3538.27249116,9.888e-05,2]
[342334640,1731743438605,-537.6,9.895e-05,2]
[342334641,1731743438614,-1001.36135611,9.897e-05,2]
[342334642,1731743438623,-500.0,9.898e-05,2]
[342334643,1731743438631,-500.0,9.898e-05,2]
[342334644,1731743438641,-500.0,9.898e-05,2]
[342334645,1731743438650,-500.0,9.898e-05,2]
[342334646,1731743438659,-500.0,9.898e-05,2]
[342334647,1731743438668,-500.0,9.898e-05,2]
[342334649,1731743438677,-500.0,9.898e-05,2]
[342334651,1731743438686,-500.0,9.898e-05,2]
[342334652,1731743438695,-500.0,9.898e-05,2]
[342334654,1731743438703,-500.0,9.898e-05,2]
[342334655,1731743438712,-500.0,9.898e-05,2]
[342334656,1731743438721,-500.0,9.898e-05,2]
[342334657,1731743438735,-500.0,9.898e-05,2]
[342334658,1731743438744,-500.0,9.898e-05,2]
[342334659,1731743438753,-500.0,9.898e-05,2]
[342334660,1731743438762,-500.0,9.898e-05,2]
[342334661,1731743438771,-500.0,9.898e-05,2]
[342334662,1731743438780,-500.0,9.898e-05,2]
[342334664,1731743438789,-500.0,9.898e-05,2]
[342334666,1731743438797,-500.0,9.898e-05,2]
[342334668,1731743438806,-500.0,9.898e-05,2]
[342334670,1731743438815,-508.14968762,9.898e-05,2]
[342334672,1731743438824,-500.0,9.898e-05,2]
[342334674,1731743438833,-500.0,9.898e-05,2]
[342334675,1731743438843,-500.0,9.898e-05,2]
[342334676,1731743438852,-500.0,9.898e-05,2]
[342334677,1731743438861,-500.0,9.898e-05,2]
[342334678,1731743438870,-500.0,9.898e-05,2]
[342334679,1731743438878,-285.21485476,9.898e-05,2]
[342334680,1731743440382,-214.78514524,9.898e-05,2]
[342334681,1731743440391,-500.0,9.898e-05,2]
[342334682,1731743440401,-81.17829094,9.898e-05,2]
[342334683,1731743440413,-418.82170906,9.898e-05,2]
[342334684,1731743440423,-494.00829094,9.898e-05,2]
[342334685,1731743440517,-5.99170906,9.898e-05,2]
[342334686,1731743440526,-500.0,9.898e-05,2]
[342334687,1731743440535,-500.0,9.898e-05,2]
[342334688,1731743440544,-500.0,9.898e-05,2]
[342334689,1731743440553,-500.0,9.898e-05,2]
[342334690,1731743440562,-500.0,9.898e-05,2]
[342334691,1731743440572,-500.0,9.898e-05,2]
[342334692,1731743440582,-500.0,9.898e-05,2]
[342334693,1731743440591,-500.0,9.898e-05,2]
[342334694,1731743440600,-500.0,9.898e-05,2]
[342334695,1731743440610,-500.0,9.898e-05,2]
[342334696,1731743440619,-500.0,9.898e-05,2]
[342334697,1731743440628,-500.0,9.898e-05,2]
[342334700,1731743440831,-131.78329107,9.898e-05,2]
[342334701,1731743441106,-368.21670893,9.898e-05,2]
[342334702,1731743441116,-500.0,9.898e-05,2]
[342334703,1731743441132,-118.25054754,9.898e-05,2]
[342334705,1731743443275,-381.74945246,9.898e-05,2]
[342334706,1731743443284,-500.0,9.898e-05,2]
[342334707,1731743443294,-500.0,9.898e-05,2]
[342334708,1731743443304,-507.60875685,9.898e-05,2]
[342334709,1731743443313,-500.0,9.898e-05,2]
[342334710,1731743443323,-500.0,9.898e-05,2]
[342334711,1731743443332,-500.0,9.898e-05,2]
[342334712,1731743443341,-500.0,9.898e-05,2]
[342334713,1731743443350,-500.0,9.898e-05,2]
[342334714,1731743443360,-500.0,9.898e-05,2]
[342334715,1731743443368,-500.0,9.898e-05,2]
[342334716,1731743443378,-500.0,9.898e-05,2]
[342334717,1731743443388,-500.0,9.898e-05,2]
[342334718,1731743443397,-500.0,9.898e-05,2]
[342334719,1731743443406,-500.0,9.898e-05,2]
[342334720,1731743443417,-55.97575575,9.898e-05,2]
[342334721,1731743443428,-444.02424425,9.898e-05,2]
[342334722,1731743443437,-500.0,9.898e-05,2]
[342334723,1731743443451,-500.0,9.898e-05,2]
[342334724,1731743443460,-500.0,9.898e-05,2]
[342334725,1731743443470,-553.31020557,9.898e-05,2]
[342334726,1731743443481,-500.0,9.898e-05,2]
[342334727,1731743443491,-500.0,9.898e-05,2]
[342334728,1731743443500,-500.0,9.898e-05,2]
[342334729,1731743443510,-500.0,9.898e-05,2]
[342334730,1731743443521,-500.0,9.898e-05,2]
[342334731,1731743443531,-474.14852428,9.898e-05,2]
[342334732,1731743443543,-25.85147572,9.898e-05,2]
[342334733,1731743443553,-271.54952428,9.898e-05,2]
[342334734,1731743443564,-228.45047572,9.898e-05,2]
[342334735,1731743443573,-32.94952628,9.898e-05,2]
[342334736,1731743443857,-467.05047372,9.898e-05,2]
[342334737,1731743443868,-500.0,9.898e-05,2]
[342334738,1731743443877,-500.0,9.898e-05,2]
[342334739,1731743443887,-500.0,9.898e-05,2]
[342334740,1731743443896,-500.0,9.898e-05,2]
[342334741,1731743443905,-8.05971789,9.898e-05,2]
[342334745,1731743446127,-491.94028211,9.898e-05,2]
[342334746,1731743446137,-500.0,9.898e-05,2]
[342334747,1731743446147,-500.0,9.898e-05,2]
[342334748,1731743446158,-500.0,9.898e-05,2]
[342334749,1731743446168,-10.42954337,9.898e-05,2]
[342334750,1731743446180,-489.57045663,9.898e-05,2]
[342334751,1731743446190,-500.0,9.898e-05,2]
[342334752,1731743446199,-500.0,9.898e-05,2]
[342334753,1731743446209,-500.0,9.898e-05,2]
[342334754,1731743446218,-544.48477147,9.898e-05,2]
[342334755,1731743446229,-500.0,9.898e-05,2]
[342334756,1731743446239,-500.0,9.898e-05,2]
[342334757,1731743446248,-500.0,9.898e-05,2]
[342334758,1731743446257,-500.0,9.898e-05,2]
[342334759,1731743446267,-500.0,9.898e-05,2]
[342334760,1731743446276,-500.0,9.898e-05,2]
[342334761,1731743446285,-500.0,9.898e-05,2]
[342334762,1731743446295,-500.0,9.898e-05,2]
[342334763,1731743446304,-500.0,9.898e-05,2]
[342334764,1731743446313,-570.6685593,9.898e-05,2]
[342334765,1731743446323,-500.0,9.898e-05,2]
[342334766,1731743446335,-500.0,9.898e-05,2]
[342334767,1731743446344,-419.37385534,9.898e-05,2]
[342334768,1731743446576,-80.62614466,9.898e-05,2]
[342334769,1731743446587,-500.0,9.898e-05,2]
[342334770,1731743446598,-1000.0,9.898e-05,2]
[342334771,1731743446607,-1000.0,9.898e-05,2]
[342334772,1731743446617,-500.0,9.898e-05,2]
[342334773,1731743446626,-500.0,9.898e-05,2]
[342334774,1731743446635,-402.99890742,9.898e-05,2]
[342334775,1731743446647,-97.00109258,9.898e-05,2]
[342334776,1731743446657,-500.0,9.898e-05,2]
[342334777,1731743446667,-188.99890742,9.898e-05,2]
[342334778,1731743446685,-311.00109258,9.898e-05,2]
[342334779,1731743446695,-507.48710085,9.898e-05,2]
[342334780,1731743446706,-500.0,9.898e-05,2]
[342334781,1731743446716,-483.70192706,9.898e-05,2]
[342334782,1731743446727,-500.0,9.898e-05,2]
[342334783,1731743446736,-500.0,9.898e-05,2]
[342334784,1731743446745,-500.0,9.898e-05,2]
[342334785,1731743446754,-502.81761341,9.898e-05,2]
[342334786,1731743446764,-500.0,9.898e-05,2]
[342334787,1731743446774,-294.57079765,9.898e-05,2]
[342334788,1731743446783,-500.0,9.898e-05,2]
[342334789,1731743446792,-500.0,9.898e-05,2]
[342334790,1731743446801,-500.0,9.898e-05,2]
[342334791,1731743446811,-500.0,9.898e-05,2]
[342334792,1731743446820,-500.0,9.898e-05,2]
[342334793,1731743446829,-500.0,9.898e-05,2]
[342334794,1731743446839,-500.0,9.898e-05,2]
[342334795,1731743446848,-502.47512682,9.898e-05,2]
[342334796,1731743446857,-500.0,9.898e-05,2]
[342334797,1731743446866,-500.0,9.898e-05,2]
[342334798,1731743446875,-502.37294947,9.898e-05,2]
[342334799,1731743446884,-500.0,9.898e-05,2]
[342334800,1731743446893,-250.0,9.898e-05,2]
[342334801,1731743446902,-500.0,9.898e-05,2]
[342334802,1731743446911,-250.0,9.898e-05,2]
[342334803,1731743446920,-564.35068573,9.898e-05,2]
[342334804,1731743446929,-500.0,9.898e-05,2]
[342334805,1731743446938,-500.0,9.898e-05,2]
[342334806,1731743446947,-500.0,9.898e-05,2]
[342334807,1731743446956,-501.85648622,9.898e-05,2]
[342334808,1731743446966,-500.0,9.898e-05,2]
[342334809,1731743446977,-500.0,9.898e-05,2]
[342334810,1731743446987,-568.12346411,9.898e-05,2]
[342334811,1731743446997,-501.31353196,9.898e-05,2]
[342334812,1731743447007,-500.0,9.898e-05,2]
[342334813,1731743447016,-500.0,9.898e-05,2]
[342334814,1731743447026,-500.0,9.898e-05,2]
[342334815,1731743447035,-500.22621002,9.898e-05,2]
[342334816,1731743447044,-500.0,9.898e-05,2]
[342334817,1731743447053,-529.76,9.898e-05,2]
[342334818,1731743447063,-500.0,9.898e-05,2]
[342334819,1731743447072,-501.7409808,9.898e-05,2]
[342334820,1731743447081,-500.0,9.898e-05,2]
[342334821,1731743447091,-500.0,9.898e-05,2]
[342334822,1731743447100,-500.0,9.898e-05,2]
[342334823,1731743447109,-500.0,9.898e-05,2]
[342334824,1731743447118,-500.0,9.898e-05,2]
[342334825,1731743447127,-500.0,9.898e-05,2]
[342334826,1731743447136,-500.0,9.898e-05,2]
[342334827,1731743447146,-596.07439615,9.898e-05,2]
[342334828,1731743447155,-500.0,9.898e-05,2]
[342334829,1731743447164,-500.0,9.898e-05,2]
[342334830,1731743447174,-379.61764941,9.898e-05,2]
[342334831,1731743447182,-501.20787905,9.898e-05,2]
[342334832,1731743447192,-500.0,9.898e-05,2]
[342334833,1731743447201,-501.2434642,9.898e-05,2]
[342334834,1731743447210,-500.0,9.898e-05,2]
[342334835,1731743447219,-500.31181405,9.898e-05,2]
[342334836,1731743447231,-500.0,9.898e-05,2]
[342334837,1731743447240,-496.94955259,9.898e-05,2]
[342334838,1731743447249,-500.0,9.898e-05,2]
[342334839,1731743447258,-500.0,9.898e-05,2]
[342334840,1731743447267,-500.0,9.898e-05,2]
[342334841,1731743447276,-551.23112258,9.898e-05,2]
[342334842,1731743447285,-500.0,9.898e-05,2]
[342334843,1731743447295,-501.92155604,9.898e-05,2]
[342334844,1731743447304,-500.0,9.898e-05,2]
[342334845,1731743447313,-501.03995029,9.898e-05,2]
[342334846,1731743447322,-500.0,9.898e-05,2]
[342334847,1731743447331,-500.67938588,9.898e-05,2]
[342334848,1731743447340,-500.0,9.898e-05,2]
[342334849,1731743447350,-500.31874364,9.898e-05,2]
[342334850,1731743447359,-500.0,9.898e-05,2]
[342334851,1731743447368,-501.49075068,9.898e-05,2]
[342334852,1731743447377,-500.0,9.898e-05,2]
[342334853,1731743447387,-501.59949125,9.898e-05,2]
[342334854,1731743447397,-500.0,9.898e-05,2]
[342334855,1731743447406,-500.0,9.898e-05,2]
[342334856,1731743447416,-500.94623654,9.898e-05,2]
[342334857,1731743447425,-500.0,9.898e-05,2]
[342334858,1731743447434,-500.0,9.898e-05,2]
[342334859,1731743447445,-444.03615329,9.898e-05,2]
[342334860,1731743447454,-500.0,9.898e-05,2]
[342334861,1731743447463,-500.0,9.898e-05,2]
[342334862,1731743447472,-500.0,9.898e-05,2]
[342334863,1731743447483,-500.0,9.898e-05,2]
[342334864,1731743447494,-500.0,9.898e-05,2]
[342334865,1731743447503,-500.0,9.898e-05,2]
[342334866,1731743447513,-500.0,9.898e-05,2]
[342334867,1731743447523,-500.0,9.898e-05,2]
[342334868,1731743447532,-500.0,9.898e-05,2]
[342334869,1731743447541,-500.0,9.898e-05,2]
[342334870,1731743447550,-500.0,9.898e-05,2]
[342334871,1731743447560,-340.57,9.898e-05,2]
[342334872,1731743447569,-500.0,9.898e-05,2]
[342334873,1731743447578,-500.0,9.898e-05,2]
[342334874,1731743447586,-500.0,9.898e-05,2]
[342334875,1731743447595,-500.0,9.898e-05,2]
[342334876,1731743447604,-500.0,9.898e-05,2]
[342334877,1731743447613,-500.0,9.898e-05,2]
[342334878,1731743447622,-511.36970176,9.898e-05,2]
[342334879,1731743447631,-500.0,9.898e-05,2]
[342334880,1731743447640,-500.0,9.898e-05,2]
[342334881,1731743447649,-500.0,9.898e-05,2]
[342334882,1731743447658,-393.52971968,9.898e-05,2]
[342334883,1731743447667,-500.0,9.898e-05,2]
[342334884,1731743447676,-316.57087935,9.898e-05,2]
[342334885,1731743447684,-500.0,9.898e-05,2]
[342334886,1731743447693,-411.34136585,9.898e-05,2]
[342334887,1731743447702,-520.55848977,9.898e-05,2]
[342334888,1731743447711,-500.0,9.898e-05,2]
[342334889,1731743447720,-500.0,9.898e-05,2]
[342334890,1731743447732,-500.0,9.898e-05,2]
[342334891,1731743447742,-175.15729679,9.898e-05,2]
[342334892,1731743447751,-500.0,9.898e-05,2]
[342334893,1731743447761,-500.0,9.898e-05,2]
[342334894,1731743447770,-500.0,9.898e-05,2]
[342334895,1731743447779,-500.0,9.898e-05,2]
[342334896,1731743447788,-500.0,9.898e-05,2]
[342334897,1731743447797,-500.0,9.898e-05,2]
[342334898,1731743447806,-500.98472177,9.898e-05,2]
[342334899,1731743447815,-528.81341821,9.898e-05,2]
[342334900,1731743447824,-500.0,9.898e-05,2]
[342334901,1731743447833,-500.0,9.898e-05,2]
[342334902,1731743447842,-500.0,9.898e-05,2]
[342334903,1731743447851,-500.0,9.898e-05,2]
[342334904,1731743447860,-500.0,9.898e-05,2]
[342334905,1731743447869,-500.0,9.898e-05,2]
[342334906,1731743447878,-500.0,9.898e-05,2]
[342334907,1731743447887,-500.0,9.898e-05,2]
[342334908,1731743447896,-500.0,9.898e-05,2]
[342334909,1731743447906,-549.86271348,9.898e-05,2]
[342334910,1731743447915,-500.0,9.898e-05,2]
[342334911,1731743447924,-500.0,9.898e-05,2]
[342334912,1731743447934,-30757.79537004,9.899e-05,2]
[342334913,1731743447951,-2218.54540465,9.899e-05,2]
[342334914,1731743447961,-969.12,9.899e-05,2]
[342334915,1731743447972,-4472.044988,9.899e-05,2]
[342334916,1731743447985,-1000.0,9.899e-05,2]
[342334918,1731743497899,1237.06,8.219e-05,2]
[342334920,1731743603619,-10000.0,0.0001,10]
[342334921,1731743603779,-1000.0,0.00013698,10]
[342334922,1731743603802,-1000.0,0.00013698,10]
[342334923,1731743603823,-1000.0,0.00013698,10]
[342334924,1731743603847,-1000.0,0.00013698,10]
[342334925,1731743603868,-1000.0,0.00013698,10]
[342334926,1731743603890,-1000.0,0.00013698,10]
[342334927,1731743603911,-1000.0,0.00013698,10]
[342334928,1731743603934,-1000.0,0.00013698,10]
[342334929,1731743603956,-1000.0,0.00013698,10]
[342334930,1731743603978,-1000.0,0.00013698,10]
[342334931,1731743604000,-1000.0,0.00013698,10]
[342334932,1731743604021,-1000.0,0.00013698,10]
[342334933,1731743604042,-1000.0,0.00013698,10]
[342334934,1731743604064,-1000.0,0.00013698,10]
[342334935,1731743604085,-1000.0,0.00013698,10]
[342334936,1731743604108,-1000.0,0.00013698,10]
[342334937,1731743604129,-1000.0,0.00013698,10]
[342334938,1731743604150,-1000.0,0.00013698,10]
[342334939,1731743604172,-1073.23417494,0.00013698,10]
[342334940,1731743604216,-12804.0,0.00015,10]
[342334941,1731743604238,-410.90996273,0.00015,10]
[342334942,1731743604270,-1960.05,0.00016658,30]
[342334943,1731743604293,-5000.0,0.00017874,18]
[342334944,1731743604315,-500.0,0.00018,10]
[342334945,1731743604337,-900.0,0.00018,19]
[342334946,1731743604365,-1800.0,0.00019,20]
[342334947,1731743604390,-1960.05,0.00019242,30]
[342334948,1731743604414,-468.64225318,0.0002,10]
[342334949,1731743604438,-156.0,0.0002,10]
[342334950,1731743604460,-1800.0,0.0002,21]
[342334951,1731743604482,-250.0,0.0002,10]
[342334952,1731743604506,-15212.19907768,0.0002,15]
[342334953,1731743604528,-1552.47499034,0.0002,30]
[342334954,1731743604550,-991.59587398,0.0002,20]
[342334955,1731743604571,-500.0,0.0002,45]
[342334956,1731743609379,1764.04,0.00016658,30]
[342334957,1731743610344,1764.04,0.00019242,30]
[342334960,1731743694963,-250.0,8.953e-05,2]
[342334967,1731743869290,250.0,8.953e-05,2]
[342334969,1731743906859,168.76,8.954e-05,2]
[342334970,1731743974038,168.63,8.954e-05,2]
[342334971,1731744027610,3162.61,8.956e-05,2]
[342334972,1731744161228,1175.2,8.219e-05,2]
[342334973,1731744202779,2000.0,0.00024799,120]
[342334974,1731744430104,-180.59976548,8.938e-05,2]
[342334975,1731744554579,-819.40023452,8.938e-05,2]
[342334976,1731744554603,-250.0,8.941e-05,2]
[342334977,1731744554625,-320.0,8.941e-05,2]
[342334978,1731744554645,-1050.21,8.943e-05,2]
[342334979,1731744554666,-181.09902979,8.956e-05,2]
[342334980,1731744573103,-250.0,8.952e-05,2]
[342334981,1731744573124,-81.10657889,8.956e-05,2]
[342334985,1731744632351,-20.86439132,8.956e-05,2]
[342334986,1731744632361,-1681.86,9.012e-05,2]
[342334987,1731744632370,-200.0,9.6e-05,2]
[342334988,1731744632379,-1000.0,9.6e-05,2]
[342334989,1731744632388,-1000.0,9.7e-05,2]
[342334990,1731744632397,-150.0,9.7e-05,2]
[342334991,1731744632406,-300.0,9.797e-05,2]
[342334992,1731744632415,-150.0,9.798e-05,2]
[342334993,1731744632424,-5183.2776,9.798e-05,2]
[342334994,1731744632435,-467.6215,9.799e-05,2]
[342334995,1731744632443,-17911.878531,9.799e-05,2]
[342334996,1731744632454,-261.84069236,9.799e-05,2]
[342334997,1731744632508,-2702.02117537,9.799e-05,2]
[342334998,1731744632520,-374.94379054,9.799e-05,2]
[342334999,1731744632562,-2334.45599337,9.799e-05,2]
[342335000,1731744632670,-561.75930824,9.799e-05,2]
[342335019,1731744638375,-1928.83926,9.799e-05,2]
[342335020,1731744638585,-357.95902549,9.799e-05,2]
[342335021,1731744638638,-5431.97694124,9.799e-05,2]
[342335022,1731744638650,-10986.93958197,9.799e-05,2]
[342335023,1731744638661,-1978.87395376,9.799e-05,2]
[342335024,1731744638672,-4790.04150215,9.799e-05,2]
[342335025,1731744638746,-6133.54154451,9.799e-05,2]
[342335027,1731744638755,-3078.7655,9.799e-05,2]
[342335029,1731744638764,-1526.45,9.8e-05,2]
[342335031,1731744638773,-432.72,9.8e-05,2]
[342335032,1731744638783,-1000.0,9.8e-05,2]
[342335033,1731744638795,-645.2658,9.858e-05,2]
[342335034,1731744638804,-530.54727408,9.898e-05,2]
[342335035,1731744638815,-500.0,9.898e-05,2]
[342335036,1731744638825,-500.0,9.898e-05,2]
[342335037,1731744638836,-500.0165567,9.898e-05,2]
[342335038,1731744638846,-500.0,9.898e-05,2]
[342335040,1731744638856,-585.96944944,9.898e-05,2]
[342335042,1731744638866,-500.78304484,9.898e-05,2]
[342335043,1731744638876,-500.0,9.898e-05,2]
[342335045,1731744638886,-500.0,9.898e-05,2]
[342335047,1731744638895,-500.0,9.898e-05,2]
[342335048,1731744638905,-563.4837777,9.898e-05,2]
[342335049,1731744638915,-500.0184427,9.898e-05,2]
[342335050,1731744638925,-500.0,9.898e-05,2]
[342335051,1731744638934,-500.0,9.898e-05,2]
[342335052,1731744638945,-500.04425853,9.898e-05,2]
[342335053,1731744638955,-500.13206249,9.898e-05,2]
[342335055,1731744638965,-500.30792104,9.898e-05,2]
[342335057,1731744638974,-501.26763137,9.898e-05,2]
[342335059,1731744638984,-500.55870062,9.898e-05,2]
[342335060,1731744638994,-500.75187097,9.898e-05,2]
[342335061,1731744639004,-500.0,9.898e-05,2]
[342335062,1731744639014,-500.0,9.898e-05,2]
[342335064,1731744639024,-501.64275533,9.898e-05,2]
[342335065,1731744639032,-500.0540621,9.898e-05,2]
[342335066,1731744639042,-501.19087533,9.898e-05,2]
[342335067,1731744639051,-500.0,9.898e-05,2]
[342335068,1731744639061,-384.23973442,9.898e-05,2]
[342335069,1731744639071,-500.53356244,9.898e-05,2]
[342335070,1731744639080,-500.5305046,9.898e-05,2]
[342335071,1731744639090,-500.98248293,9.898e-05,2]
[342335072,1731744639100,-504.13319919,9.898e-05,2]
[342335073,1731744639110,-362.44552858,9.898e-05,2]
[342335074,1731744639119,-1000.0,9.9e-05,2]
[342335075,1731744639129,-167.41,9.926e-05,2]
[342335076,1731744639139,-814.852,9.95e-05,2]
[342335077,1731744639148,-178.87296506,9.95e-05,2]
[342335078,1731744639158,-11318.89108864,9.952e-05,2]
[342335082,1731744640170,-4697.94391742,9.952e-05,2]
[342335083,1731744640180,-16016.83500606,9.953e-05,2]
[342335084,1731744640189,-6591.88435948,9.954e-05,2]
[342335085,1731744640205,-6591.88435948,9.954e-05,2]
[342335086,1731744640215,-965.47963775,9.956e-05,2]
[342335087,1731744640225,-447.51325924,9.958e-05,2]
[342335088,1731744640234,-500.0,9.958e-05,2]
[342335089,1731744640244,-589.72180019,9.958e-05,2]
[342335090,1731744640254,-500.0,9.958e-05,2]
[342335091,1731744640264,-500.0,9.958e-05,2]
[342335092,1731744640274,-500.0,9.958e-05,2]
[342335093,1731744640284,-500.0,9.958e-05,2]
[342335094,1731744640293,-500.0,9.958e-05,2]
[342335095,1731744640303,-500.0,9.958e-05,2]
[342335096,1731744640313,-500.0,9.958e-05,2]
[342335097,1731744640323,-413.54610988,9.958e-05,2]
[342335098,1731744640333,-500.0,9.958e-05,2]
[342335099,1731744640344,-500.0,9.958e-05,2]
[342335100,1731744640354,-275.67623411,9.958e-05,2]
[342335101,1731744640365,-500.0,9.958e-05,2]
[342335102,1731744640374,-598.20179817,9.958e-05,2]
[342335103,1731744640384,-500.0,9.958e-05,2]
[342335104,1731744640394,-500.0,9.958e-05,2]
[342335105,1731744640403,-500.0,9.958e-05,2]
[342335106,1731744640412,-279.33442113,9.958e-05,2]
[342335107,1731744640422,-500.0,9.958e-05,2]
[342335108,1731744640432,-500.0,9.958e-05,2]
[342335109,1731744640444,-500.0,9.958e-05,2]
[342335110,1731744640453,-500.0,9.958e-05,2]
[342335111,1731744640462,-500.0,9.958e-05,2]
[342335112,1731744640472,-500.0,9.958e-05,2]
[342335113,1731744640481,-500.0,9.958e-05,2]
[342335114,1731744640491,-152.8330522,9.958e-05,2]
[342335115,1731744640501,-500.0,9.958e-05,2]
[342335116,1731744640511,-500.0,9.958e-05,2]
[342335117,1731744640521,-500.0,9.958e-05,2]
[342335118,1731744640531,-500.0,9.958e-05,2]
[342335119,1731744640540,-500.0,9.958e-05,2]
[342335120,1731744640550,-500.0,9.958e-05,2]
[342335121,1731744640560,-500.0,9.958e-05,2]